[Event "Chinese League Division-A 2024"]
[Site "Fuling Chongqing"]
[Date "2024.06.29"]
[Round "4.25"]
[White "Zhang, Lanlin"]
[Black "Liu, Manli"]
[Result "1/2-1/2"]
[ECO "B44"]
[WhiteElo "2161"]
[BlackElo "2056"]
[Annotator "RC"]
[PlyCount "188"]
[EventDate "2024.06.28"]
[EventType "team-tourn"]
[EventCountry "CHN"]
[SourceTitle "playchess.com"]
[Source "ChessBase"]
[SourceQuality "1"]
[TimeControl "40/5400+30:1800+30"]

1. e4 {[%emt 0:00:03]} c5 {[%emt 0:00:09]} 2. Nf3 {[%emt 0:00:05]} e6 {[%emt 0:00:06]} 3. d4 {[%emt 0:00:04]} cxd4 {[%emt 0:00:07]} 4. Nxd4 {[%emt 0:00:03]} Nc6 {[%emt 0:00:07]} 5. Bf4 {[%emt 0:00:10]} d6 {[%emt 0:10:02]} 6. Nxc6 {[%emt 0:02:02]} bxc6 {[%emt 0:00:03]} 7. Nc3 {[%emt 0:00:05]} e5 {[%emt 0:05:20]} 8. Be3 {[%emt 0:00:10]} Nf6 {[%emt 0:00:16]} 9. Bc4 {[%emt 0:00:04]} Be7 {[%emt 0:00:34]} 10. Qe2 {[%emt 0:00:05]} Be6 {[%emt 0:22:22]} 11. O-O-O {[%emt 0:05:14]} Qd7 {[%emt 0:10:03]} 12. Rhg1 {[%emt 0:03:51]} O-O {[%emt 0:02:39]} 13. Bb3 {[%emt 0:06:34]} Rfd8 {[%emt 0:02:25]} 14. Bd2 {[%emt 0:11:16]} Rac8 {[%emt 0:10:23]} 15. Kb1 {[%emt 0:07:23]} Bxb3 {[%emt 0:05:31]} 16. axb3 {[%emt 0:00:50]} Qe6 {[%emt 0:00:09]} 17. Rge1 {[%emt 0:03:42]} h6 {[%emt 0:10:13]} 18. h3 {[%emt 0:01:02]} Nh7 {[%emt 0:00:34]} 19. Na4 {[%emt 0:06:28]} Qg6 {[%emt 0:03:49]} 20. Ba5 {[%emt 0:02:47]} Rf8 {[%emt 0:01:12]} 21. g4 {[%emt 0:00:09]} Ng5 {[%emt 0:01:25]} 22. Qe3 {[%emt 0:02:59]} Rfe8 {[%emt 0:00:32]} 23. Bc3 {[%emt 0:01:37]} Rc7 {[%emt 0:01:39]} 24. Rd3 {[%emt 0:07:10]} Ne6 {[%emt 0:01:41]} 25. Red1 {[%emt 0:01:06]} Nf4 {[%emt 0:00:09]} 26. R3d2 {[%emt 0:00:04]} Rb7 {[%emt 0:00:29]} 27. b4 {[%emt 0:03:48]} Reb8 {[%emt 0:03:09]} 28. b3 {[%emt 0:00:16]} Qe6 {[%emt 0:02:15]} 29. Qe1 {[%emt 0:16:31]} Nxh3 {[%emt 0:01:21]} 30. Nb2 {[%emt 0:02:18]} f6 {[%emt 0:04:32]} 31. Nc4 {[%emt 0:01:46]} Rd7 {[%emt 0:00:08]} 32. Na5 {[%emt 0:01:36]} d5 {[%emt 0:00:21]} 33. exd5 {[%emt 0:08:24]} cxd5 {[%emt 0:00:08]} 34. b5 {[%emt 0:01:48]} Nf4 {[%emt 0:00:50]} 35. Qf1 {[%emt 0:01:59]} Rc7 {[%emt 0:00:42]} 36. Nc6 {[%emt 0:01:21]} Rxc6 {[%emt 0:00:43]} 37. bxc6 {[%emt 0:00:04]} Qxc6 {[%emt 0:00:12]} 38. Bb2 {[%emt 0:03:56]} Bb4 {[%emt 0:00:33]} 39. Rd3 {[%emt 0:00:34]} Nxd3 {[%emt 0:00:39]} 40. Qxd3 {[%emt 0:00:00]} Rd8 {[%emt 0:00:00]} 41. f3 {[%emt 0:03:07]} a5 {[%emt 0:01:12]} 42. Qf5 {[%emt 0:00:27]} Qd7 {[%emt 0:01:04]} 43. Qg6 {[%emt 0:01:50]} a4 {[%emt 0:00:40]} 44. c3 {[%emt 0:03:54]} Bf8 {[%emt 0:01:08]} 45. b4 {[%emt 0:00:09]} a3 {[%emt 0:00:27]} 46. Bc1 {[%emt 0:01:51]} Qa4 {[%emt 0:00:32]} 47. Qd3 {[%emt 0:00:03]} Qb3+ {[%emt 0:01:45]} 48. Ka1 {[%emt 0:00:04]} d4 {[%emt 0:00:44]} 49. cxd4 {[%emt 0:00:27]} Qxb4 {[%emt 0:00:32]} 50. d5 {[%emt 0:00:07]} Bc5 {[%emt 0:00:48]} 51. Ka2 {[%emt 0:00:52]} Bd4 {[%emt 0:01:09]} 52. Bxa3 {[%emt 0:01:16]} Ra8 {[%emt 0:02:47]} 53. Qb3 {[%emt 0:02:00]} Qd6 {[%emt 0:00:00]} 54. Rxd4 {[%emt 0:13:53]} exd4 {[%emt 0:00:00]} 55. Kb2 {[%emt 0:00:01]} Rxa3 {[%emt 0:00:09]} 56. Qxa3 {[%emt 0:00:05]} Qxd5 {[%emt 0:00:06]} 57. Qd3 {[%emt 0:03:51]} Kf7 {[%emt 0:00:27]} 58. Kc2 {[%emt 0:00:20]} Qa2+ {[%emt 0:00:42]} 59. Kd1 {[%emt 0:00:30]} Qa1+ {[%emt 0:00:06]} 60. Ke2 {[%emt 0:00:05]} Qb2+ {[%emt 0:01:46]} 61. Kd1 {[%emt 0:00:11]} Qc3 {[%emt 0:01:21]} 62. Qf5 {[%emt 0:00:06]} Qe3 {[%emt 0:00:52]} 63. Qd7+ {[%emt 0:00:16]} Qe7 {[%emt 0:03:03]} 64. Qxd4 {[%emt 0:00:05]} Qe6 {[%emt 0:00:38]} 65. Qd3 {[%emt 0:01:44]} Qe5 {[%emt 0:02:22]} 66. Qh7 {[%emt 0:01:04]} Qe3 {[%emt 0:03:50]} 67. Qf5 {[%emt 0:00:06]} Ke7 {[%emt 0:00:51]} 68. Qd5 {[%emt 0:03:24]} Qe6 {[%emt 0:00:43]} 69. Qa8 {[%emt 0:00:03]} Kf7 {[%emt 0:00:23]} 70. Qa5 {[%emt 0:02:30]} Kg6 {[%emt 0:00:34]} 71. Qh5+ {[%emt 0:00:18]} Kh7 {[%emt 0:00:08]} 72. Kd2 {[%emt 0:00:33]} Qe5 {[%emt 0:03:16]} 73. Qf7 {[%emt 0:00:06]} Qd4+ {[%emt 0:03:10]} 74. Ke2 {[%emt 0:00:07]} Qc3 {[%emt 0:00:17]} 75. Kf2 {[%emt 0:01:21]} Qc2+ {[%emt 0:00:21]} 76. Kg3 {[%emt 0:01:27]} Qe2 {[%emt 0:00:21]} 77. Qd7 {[%emt 0:00:29]} Qe5+ {[%emt 0:00:26]} 78. Kf2 {[%emt 0:00:37]} Kg6 {[%emt 0:00:45]} 79. Qd3+ {[%emt 0:00:24]} Kg5 {[%emt 0:03:26]} 80. Qd1 {[%emt 0:00:09]} Qh2+ {[%emt 0:01:01]} 81. Ke3 {[%emt 0:00:07]} Kh4 {[%emt 0:02:22]} 82. Qe1+ {[%emt 0:01:23]} Kh3 {[%emt 0:00:10]} 83. Qf1+ {[%emt 0:00:03]} Qg2 {[%emt 0:00:14]} 84. Qb1 {[%emt 0:00:05]} Kh2 {[%emt 0:00:55]} 85. Qb8+ {[%emt 0:00:15]} Kh1 {[%emt 0:00:21]} 86. Qb7 {[%emt 0:00:15]} Qg1+ {[%emt 0:01:56]} 87. Ke4 {[%emt 0:01:37]} Qe1+ {[%emt 0:03:44]} 88. Kf5 {[%emt 0:00:31]} Qe5+ {[%emt 0:01:10]} 89. Kg6 {[%emt 0:00:05]} Kh2 {[%emt 0:01:46]} 90. Kxg7 {[%emt 0:00:18]} Qg5+ {[%emt 0:00:31]} 91. Kf7 {[%emt 0:01:03]} Kg3 {[%emt 0:00:21]} 92. Qe4 {[%emt 0:00:38]} Qe5 {[%emt 0:00:28]} 93. Kg6 {[%emt 0:00:24]} Qg5+ {[%emt 0:00:25]} 94. Kf7 {[%emt 0:00:02]} h5 {[%emt 0:01:26]} 1/2-1/2

[Event "Chinese League Division-A 2024"]
[Site "Fuling Chongqing"]
[Date "2024.06.29"]
[Round "4.26"]
[White "Xu, Yi"]
[Black "Huang, Renjie"]
[Result "1/2-1/2"]
[ECO "B33"]
[WhiteElo "2496"]
[BlackElo "2480"]
[Annotator "TA"]
[PlyCount "64"]
[EventDate "2024.06.28"]
[EventType "team-tourn"]
[EventCountry "CHN"]
[SourceTitle "playchess.com"]
[Source "ChessBase"]
[SourceQuality "1"]
[TimeControl "40/5400+30:1800+30"]

{[%evp 28,64,37,0,0,2,6,15,17,21,18,11,16,0,23,-27,-35,-16,-26,-29,-33,-32,-29,-34,-47,-31,-21,-34,0,-47,0,0,0,0,21,0,0,0,0]} 1. e4 {[%emt 0:00:03]} c5 {[%emt 0:00:01]} 2. Nf3 {[%emt 0:00:08]} Nc6 {[%emt 0:00:02]} 3. d4 {[%emt 0:01:36]} cxd4 {[%emt 0:00:12]} 4. Nxd4 {[%emt 0:00:04]} Nf6 {[%emt 0:00:04]} 5. Nc3 {[%emt 0:00:04]} e5 {[%emt 0:00:03]} 6. Ndb5 {[%emt 0:00:04]} d6 {[%emt 0:00:03]} 7. Bg5 {[%emt 0:00:17]} a6 {[%emt 0:00:22]} 8. Na3 {[%emt 0:00:05]} b5 {[%emt 0:00:06]} 9. Nd5 {[%emt 0:00:39]} Be7 {[%emt 0:00:05]} 10. Bxf6 {[%emt 0:00:03]} Bxf6 {[%emt 0:00:06]} 11. c3 {[%emt 0:00:26]} Rb8 {[%emt 0:00:11]} 12. Nc2 {[%emt 0:00:12]} Bg5 {[%emt 0:00:04]} 13. a4 {[%emt 0:02:37]} bxa4 {[%emt 0:00:07]} 14. Ncb4 {[%emt 0:00:16]} Nxb4 {[%emt 0:00:05]} 15. Nxb4 {[%emt 0:00:45]} Bd7 {[%emt 0:01:38] Prevents Nc6. Threatens to win with ...a5.} 16. Bxa6 {[%emt 0:00:44][%cal Oa6d3,Bf1a6,Ba6c4,Bc4e6][%mdl 32]} Qa5 {[%emt 0:05:53]} 17. Qxd6 {[%emt 0:02:12]} Rb6 {[%emt 0:00:08]} 18. Qd3 {[%emt 0:01:01]} Be6 {[%emt 0:01:57] ...Be7 would now be deadly. This pair of bishops is nice.} 19. Bc4 {[%emt 0:05:14]} Rxb4 {[%emt 0:01:57][%cal Bb6b4,Bb4d4,Bd4d2][%mdl 32]} 20. Bxe6 {[%emt 0:01:02]} Rd4 {[%emt 0:01:15]} 21. Qe2 {[%emt 0:35:40]} (21. Qf3 $142 $1 Bd2+ 22. Kf1 Qb5+ 23. Kg1) 21... Bd2+ $11 {[%emt 0:20:55]} (21... fxe6 22. O-O Rd7 (22... Rd6 $2 23. Qh5+ g6 24. Qxg5 $18) 23. Qh5+ Rf7 24. Qxg5 $16) 22. Kf1 {[%emt 0:00:21]} Bxc3 $1 {[%emt 0:00:02]} 23. Bxf7+ {[%emt 0:16:57]} Kxf7 {[%emt 0:00:20]} 24. Qf3+ {[%emt 0:00:15]} Ke7 {[%emt 0:03:47]} 25. bxc3 {[%emt 0:01:56]} ({But not} 25. Qxc3 Qxc3 26. bxc3 Rd2 $17 (26... Rxe4 27. f3 $15)) 25... Rd2 {[%emt 0:12:46]} 26. Qg3 $1 {[%emt 0:03:01]} Kf7 {[%emt 0:01:06][%mdl 1024] Hoping for ...Rhd8. Black has compensation.} 27. Qf3+ {[%emt 0:00:09]} Ke7 {[%emt 0:00:53]} 28. Qg3 $1 {[%emt 0:00:05]} Qa6+ {[%emt 0:06:39]} (28... Ke6 $1 $15 29. Qg4+ (29. Qxg7 Qxc3 30. Qh6+ Kd7 $17) 29... Kd6 30. Qxg7 Qxc3) 29. Kg1 {[%emt 0:00:03] The position is equal.} Qf6 {[%emt 0:00:03][%cal Oa4a3] [#] And now ...a3! would win.} 30. h4 {[%emt 0:02:06]} (30. Rxa4 $2 Rd1#) 30... Rf8 {[%emt 0:05:59][%cal Rf6f2]} 31. Rxa4 {[%emt 0:03:35] aiming for Ra7+.} Qxf2+ {[%emt 0:01:44]} 32. Kh2 {[%emt 0:01:10] The board is on fire.} Qxg3+ {[%emt 0:01:18] Weighted Error Value: White=0.08 (flawless) /Black=0.10 (very precise) .  Mistake:       	White=1     	Black=1      OK:         	White=9     	Black=9      Best:        	White=4     	---        Strong:       	White=2     	Black=1} 1/2-1/2

[Event "Chinese League Division-A 2024"]
[Site "Fuling Chongqing"]
[Date "2024.06.29"]
[Round "4.27"]
[White "Xiao, Tong"]
[Black "Lou, Yiping"]
[Result "1/2-1/2"]
[ECO "C65"]
[WhiteElo "2518"]
[BlackElo "2442"]
[Annotator "TA"]
[PlyCount "60"]
[EventDate "2024.06.28"]
[EventType "team-tourn"]
[EventCountry "CHN"]
[SourceTitle "playchess.com"]
[Source "ChessBase"]
[SourceQuality "1"]
[TimeControl "40/5400+30:1800+30"]

{[%evp 9,60,12,18,10,10,0,16,0,2,-2,10,8,36,26,26,18,18,14,33,26,35,15,42,38,38,25,31,23,25,6,21,0,0,0,0,-4,0,-10,-20,-12,0,0,0,0,0,0,0,0,0,0,16,0,0]} 1. e4 {[%emt 0:00:03]} e5 {[%emt 0:00:07]} 2. Nf3 {[%emt 0:00:10]} Nc6 {[%emt 0:00:05]} 3. Bb5 {[%emt 0:00:07]} Nf6 {[%emt 0:00:22]} 4. d3 {[%emt 0:00:20]} Bc5 {[%emt 0:00:08]} 5. c3 {[%emt 0:00:11]} O-O {[%emt 0:00:08]} 6. O-O {[%emt 0:00:03]} Re8 {[%emt 0:00:05]} 7. Bg5 {[%emt 0:07:13][%cal Bc1g5,Bg5h4,Bh4g3][%mdl 32]} a6 {[%emt 0:05:04]} 8. Bc4 {[%emt 0:05:35]} h6 {[%emt 0:00:35]} 9. Bh4 {[%emt 0:01:00]} b5 {[%emt 0:07:13]} 10. Bb3 {[%emt 0:03:20]} g5 {[%emt 0:01:06]} 11. Bg3 {[%emt 0:00:07] aiming for d4.} (11. Nxg5 $5 hxg5 12. Bxg5 $11) 11... d6 {[%emt 0:00:05]} 12. a4 {[%emt 0:00:18]} Bg4 {[%emt 0:01:35]} 13. Nbd2 {[%emt 0:01:12]} Bb6 {[%emt 0:03:31]} 14. Re1 {[%emt 0:01:31]} Kg7 {[%emt 0:02:08]} 15. Nf1 {[%emt 0:03:16]} Rb8 {[%emt 0:19:58]} 16. axb5 {[%emt 0:00:34]} axb5 {[%emt 0:00:04]} 17. Ne3 {[%emt 0:00:48]} Bxe3 {[%emt 0:00:11]} 18. fxe3 {[%emt 0:07:31]} Ne7 {[%emt 0:04:28]} 19. Qc2 {[%emt 0:05:39]} c5 {[%emt 0:07:42] The position is equal.} 20. c4 {[%emt 0:05:46]} b4 {[%emt 0:05:15]} 21. Ba4 {[%emt 0:03:23]} Rf8 {[%emt 0:00:30]} 22. Bb5 {[%emt 0:14:43]} Ra8 {[%emt 0:04:02]} 23. d4 {[%emt 0:02:11]} Bxf3 {[%emt 0:03:33]} 24. gxf3 {[%emt 0:00:51]} Ng6 {[%emt 0:01:38]} ({Reject} 24... exd4 $6 25. Rxa8 Qxa8 26. Bxd6 $16) 25. dxc5 {[%emt 0:07:09]} Rxa1 {[%emt 0:02:13]} 26. Rxa1 {[%emt 0:00:04] [#] Threatens to win with Rd1.} dxc5 {[%emt 0:00:03]} 27. Bc6 $1 {[%emt 0:01:00]} h5 {[%emt 0:05:03]} 28. Bd5 {[%emt 0:06:17]} Qd7 {[%emt 0:04:21]} 29. Kh1 {[%emt 0:04:05]} Rc8 {[%emt 0:04:58]} 30. b3 {[%emt 0:03:29]} Rc7 {[%emt 0:00:50] Weighted Error Value: White=0.06 (flawless) /Black=0.06 (flawless) .  Inaccurate:     	---       	Black=2      OK:         	White=7     	Black=9      Best:        	---       	Black=1      Strong:       	White=1     	---} 1/2-1/2

[Event "Chinese League Division-A 2024"]
[Site "Fuling Chongqing"]
[Date "2024.06.29"]
[Round "4.28"]
[White "Meng, Yihan"]
[Black "Liu, Qingnan"]
[Result "1/2-1/2"]
[ECO "C54"]
[WhiteElo "2268"]
[BlackElo "2540"]
[Annotator "TA"]
[PlyCount "151"]
[EventDate "2024.06.28"]
[EventType "team-tourn"]
[EventCountry "CHN"]
[SourceTitle "playchess.com"]
[Source "ChessBase"]
[SourceQuality "1"]
[TimeControl "40/5400+30:1800+30"]

{[%evp 66,151,0,-30,-25,-31,0,0,-1,-28,-42,-42,-32,-44,0,0,0,-122,-123,-128,-122,-120,-126,-118,-119,-131,-134,-115,-127,-117,-124,-103,-93,-135,-132,-162,-156,-203,0,0,0,0,0,0,0,0,0,0,0,0,4,0,0,0,0,0,0,0,0,0,0,0,0,0,0,0,0,0,0,0,0,0,0,0,0,0,0,0,0,0,0,0,0,0,0,0,0,0]} 1. e4 {[%emt 0:00:04]} e5 {[%emt 0:00:03]} 2. Nf3 {[%emt 0:00:08]} Nc6 {[%emt 0:00:06]} 3. Bc4 {[%emt 0:00:06]} Nf6 {[%emt 0:00:05]} 4. d3 {[%emt 0:00:04]} Bc5 {[%emt 0:00:03]} 5. c3 {[%emt 0:00:17]} O-O {[%emt 0:00:06]} 6. O-O {[%emt 0:00:05]} d5 {[%emt 0:00:02]} 7. exd5 {[%emt 0:00:29]} Nxd5 {[%emt 0:00:10]} 8. Re1 {[%emt 0:00:07]} Bg4 {[%emt 0:00:03]} 9. h3 {[%emt 0:01:42] C54: Giuoco Piano: 4 c3 Nf6, main lines with 5 d4 and 5 d3.} Bh5 {[%emt 0:00:06]} 10. Nbd2 {[%emt 0:00:56]} Nb6 {[%emt 0:05:27]} 11. Bb3 {[%emt 0:00:43] The main line 11.Bb3 scores better than 11.Bb5.} Qxd3 {[%emt 0:01:37]} 12. Nxe5 {[%emt 0:00:31]} Qf5 {[%emt 0:12:33]} 13. Nef3 {[%emt 0:00:31]} Rfe8 {[%emt 0:01:31]} 14. g4 {[%emt 0:10:14]} Bxg4 {[%emt 0:01:12]} 15. hxg4 {[%emt 0:00:20]} Qxg4+ {[%emt 0:00:04]} 16. Kh1 {[%emt 0:00:35]} Bxf2 {[%emt 0:03:02]} 17. Rf1 {[%emt 0:10:45]} Qh5+ $146 {[%emt 0:18:09]} ({Predecessor:} 17... Bg3 18. Bxf7+ Kh8 19. Bxe8 Qh3+ 20. Kg1 Rxe8 21. Qb3 Re2 {0-1 Gascon del Nogal,J (2460)-Yuan,Q (2373) Titled Tuesday intern op 07th Feb Late blitz 2023 (11)}) 18. Nh2 {[%emt 0:01:01]} Qxd1 {[%emt 0:00:05]} 19. Bxd1 {[%emt 0:00:14]} Be3 {[%emt 0:00:17]} 20. Bb3 {[%emt 0:06:08]} Re7 {[%emt 0:01:21]} 21. Ng4 {[%emt 0:06:01]} Bg5 {[%emt 0:00:16]} 22. Nf3 {[%emt 0:00:13]} Bxc1 {[%emt 0:00:07]} 23. Raxc1 {[%emt 0:00:03]} Na5 {[%emt 0:02:10]} 24. Bc2 {[%emt 0:05:28]} h5 {[%emt 0:05:46]} 25. Nge5 {[%emt 0:02:49]} Nac4 {[%emt 0:05:01]} 26. Nxc4 {[%emt 0:16:16]} Nxc4 {[%emt 0:01:04]} 27. Bb3 {[%emt 0:00:38]} Na5 {[%emt 0:01:27]} 28. Ba4 {[%emt 0:12:10]} Nc4 {[%emt 0:11:36]} 29. Rce1 {[%emt 0:01:03]} Rxe1 {[%emt 0:02:02]} 30. Rxe1 {[%emt 0:00:04]} Rc8 {[%emt 0:17:15]} 31. Ne5 {[%emt 0:08:28]} Nd6 {[%emt 0:01:08]} 32. Rf1 {[%emt 0:00:19]} g6 {[%emt 0:00:26]} 33. c4 {[%emt 0:04:23]} c6 {[%emt 0:03:16]} 34. Bc2 {[%emt 0:08:59]} Re8 {[%emt 0:04:09]} 35. c5 {[%emt 0:01:34]} Nf5 {[%emt 0:00:28]} 36. Bxf5 {[%emt 0:00:10]} Rxe5 {[%emt 0:00:04]} 37. Bc2 {[%emt 0:01:02]} Kg7 {[%emt 0:00:36]} (37... Rxc5 38. Bb3 $14) 38. Bb3 {[%emt 0:00:03]} f5 {[%emt 0:00:51]} 39. Rd1 {[%emt 0:00:05]} h4 {[%emt 0:01:27]} 40. Rd7+ {[%emt 0:00:00]} Kh6 {[%emt 0:00:00]} 41. Kg2 {[%emt 0:08:00]} (41. Rxb7 $6 g5 $16) (41. Rd6 $11 {remains equal.}) 41... g5 $1 $17 {[%emt 0:07:17]} 42. Rd6+ {[%emt 0:08:52]} Kg7 $1 {[%emt 0:00:18]} (42... Kh5 $2 43. Kf3 Re7 44. Rf6 $18 (44. Be6 h3 $16)) 43. Rd7+ {[%emt 0:00:17] [#]} Kf6 $1 {[%emt 0:00:16]} 44. Rd6+ {[%emt 0:00:22]} Ke7 {[%emt 0:00:18]} 45. Rg6 {[%emt 0:00:53]} g4 {[%emt 0:03:51]} (45... Rxc5 46. Rxg5 Kf6 47. Rh5 $16) 46. Rh6 {[%emt 0:00:17]} h3+ {[%emt 0:11:04]} (46... Rxc5 $6 47. Rxh4 Kf6 48. Rh7 $11) 47. Kg3 {[%emt 0:00:34]} Rxc5 {[%emt 0:00:04]} 48. Re6+ {[%emt 0:08:02]} Kd8 {[%emt 0:08:31]} 49. Re1 {[%emt 0:02:35]} a5 {[%emt 0:03:35]} 50. Re2 {[%emt 0:06:34]} Rc1 {[%emt 0:03:56]} 51. Rf2 {[%emt 0:00:05] [#]} (51. Be6 $17 {keeps fighting.} Rg1+ 52. Kh2) 51... Rg1+ $2 {[%emt 0:00:20]} ({Wrong is} 51... a4 $2 52. Be6 $18) (51... Re1 $1 $19 52. Rxf5 Rg1+ 53. Kh2 Rg2+ 54. Kh1 b5 (54... Rxb2 55. Rg5 $17)) 52. Kh2 $11 {[%emt 0:00:07]} Re1 {[%emt 0:00:03]} 53. Bc2 $1 {[%emt 0:01:38]} (53. Rxf5 $2 {perishes.} Re2+ 54. Kg3 Rg2+ (54... Rxb2 $2 55. Kxg4 a4 56. Rf8+ Ke7 57. Rf7+ Kd6 58. Rf6+ Ke5 59. Rf5+ Ke4 60. Rf4+ Ke3 61. Rf3+ Kd4 62. Bf7 $19) 55. Kf4 Rf2+ (55... Rxb2 56. Kxg4 a4 57. Rf8+ Ke7 58. Rf7+ Kd6 59. Rf6+ Kc5 60. Bf7 $17) 56. Kxg4 Rxf5 $19) 53... f4 {[%emt 0:01:01]} 54. Rd2+ {[%emt 0:00:02]} Ke7 {[%emt 0:00:48]} (54... Kc7 $5) 55. Bf5 {[%emt 0:00:02]} g3+ {[%emt 0:00:14]} 56. Kxh3 {[%emt 0:00:02]} Kf6 {[%emt 0:00:13]} 57. Kg4 {[%emt 0:00:42]} Ke5 {[%emt 0:01:12]} 58. Bc2 {[%emt 0:02:25]} Rf1 {[%emt 0:00:28]} 59. Bd3 {[%emt 0:00:11]} Rh1 {[%emt 0:00:23]} 60. Re2+ {[%emt 0:00:44]} Kd4 {[%emt 0:00:01]} 61. Be4 {[%emt 0:00:03]} Rf1 {[%emt 0:00:16]} 62. Bg2 {[%emt 0:02:14]} Rf2 {[%emt 0:00:01]} 63. Rxf2 {[%emt 0:00:06]} gxf2 {[%emt 0:00:01]} 64. Kf3 {[%emt 0:01:53]} Kd3 {[%emt 0:00:05]} 65. Kxf2 {[%emt 0:00:22]} Kc2 {[%emt 0:00:03]} 66. b3 {[%emt 0:00:06]} Kb2 {[%emt 0:00:26]} 67. Bh3 {[%emt 0:00:13]} Kxa2 {[%emt 0:01:50]} 68. Be6 {[%emt 0:00:02]} Kb2 {[%emt 0:00:58]} 69. Kf3 {[%emt 0:00:02]} b5 {[%emt 0:00:16]} 70. Kxf4 {[%emt 0:00:15]} c5 {[%emt 0:00:08]} 71. Ke4 {[%emt 0:01:37]} Kc3 {[%emt 0:00:21]} 72. Kd5 {[%emt 0:00:29]} Kb4 {[%emt 0:00:27]} 73. Ke4 {[%emt 0:00:07]} Kc3 {[%emt 0:00:49]} 74. Kd5 {[%emt 0:00:14]} Kb4 {[%emt 0:00:56]} 75. Ke4 {[%emt 0:00:06]} Kc3 {[%emt 0:00:57]} 76. Kd5 {[%emt 0:00:11]} 1/2-1/2

[Event "Chinese League Division-A 2024"]
[Site "Fuling Chongqing"]
[Date "2024.06.29"]
[Round "4.29"]
[White "Zhang, Xiao"]
[Black "Zhang, Xiaowen"]
[Result "1/2-1/2"]
[ECO "D37"]
[WhiteElo "2193"]
[BlackElo "2261"]
[Annotator "RC"]
[PlyCount "62"]
[EventDate "2024.06.28"]
[EventType "team-tourn"]
[EventCountry "CHN"]
[SourceTitle "playchess.com"]
[Source "ChessBase"]
[SourceQuality "1"]
[TimeControl "40/5400+30:1800+30"]

1. d4 {[%emt 0:00:04]} d5 {[%emt 0:00:48]} 2. c4 {[%emt 0:00:07]} e6 {[%emt 0:00:03]} 3. Nf3 {[%emt 0:00:09]} Nf6 {[%emt 0:00:04]} 4. Nc3 {[%emt 0:00:30]} Be7 {[%emt 0:00:27]} 5. Bf4 {[%emt 0:01:16]} O-O {[%emt 0:00:27]} 6. e3 {[%emt 0:00:04]} b6 {[%emt 0:00:25]} 7. Be2 {[%emt 0:00:24]} dxc4 {[%emt 0:02:29]} 8. Bxc4 {[%emt 0:00:06]} Ba6 {[%emt 0:00:12]} 9. Qe2 {[%emt 0:00:09]} Qc8 {[%emt 0:00:19]} 10. Rc1 {[%emt 0:00:34]} Bxc4 {[%emt 0:14:01]} 11. Qxc4 {[%emt 0:00:06]} c5 {[%emt 0:00:31]} 12. dxc5 {[%emt 0:00:42]} Bxc5 {[%emt 0:09:58]} 13. b4 {[%emt 0:07:21]} Be7 {[%emt 0:01:31]} 14. Nd5 {[%emt 0:00:21]} Qb7 {[%emt 0:07:34]} 15. Nxe7+ {[%emt 0:19:32]} Qxe7 {[%emt 0:00:04]} 16. O-O {[%emt 0:01:24]} Nd5 {[%emt 0:06:35]} 17. Bg3 {[%emt 0:01:27]} Qb7 {[%emt 0:16:25]} 18. a3 {[%emt 0:24:26]} Nd7 {[%emt 0:04:23]} 19. Qc6 {[%emt 0:06:14]} Qxc6 {[%emt 0:02:34]} 20. Rxc6 {[%emt 0:00:05]} Rfc8 {[%emt 0:02:46]} 21. Rfc1 {[%emt 0:00:55]} Ne7 {[%emt 0:01:26]} 22. Rc7 {[%emt 0:00:25]} Rxc7 {[%emt 0:00:55]} 23. Rxc7 {[%emt 0:00:03]} Rc8 {[%emt 0:00:06]} 24. Kf1 {[%emt 0:00:19]} Rxc7 {[%emt 0:00:21]} 25. Bxc7 {[%emt 0:00:04]} f6 {[%emt 0:03:43]} 26. e4 {[%emt 0:02:58]} e5 {[%emt 0:04:19]} 27. Nd2 {[%emt 0:12:31]} Kf7 {[%emt 0:06:39]} 28. f4 {[%emt 0:00:21]} exf4 {[%emt 0:00:33]} 29. Bxf4 {[%emt 0:00:09]} Ng6 {[%emt 0:00:08]} 30. Bg3 {[%emt 0:01:50]} Nge5 {[%emt 0:00:19]} 31. Ke2 {[%emt 0:00:56]} Ke6 {[%emt 0:01:09]} 1/2-1/2

[Event "Chinese League Division-A 2024"]
[Site "Fuling Chongqing"]
[Date "2024.06.29"]
[Round "4.30"]
[White "Ju, Wenjun"]
[Black "Hu, Yu A."]
[Result "1-0"]
[ECO "E73"]
[WhiteElo "2558"]
[BlackElo "2127"]
[Annotator "TA"]
[PlyCount "67"]
[EventDate "2024.06.28"]
[EventType "team-tourn"]
[EventCountry "CHN"]
[SourceTitle "playchess.com"]
[Source "ChessBase"]
[SourceQuality "1"]
[TimeControl "40/5400+30:1800+30"]

{[%evp 14,67,58,63,60,58,63,64,63,65,87,82,91,85,160,91,104,91,96,93,119,102,104,102,115,102,120,98,101,89,174,86,220,218,228,215,204,219,196,160,311,298,325,239,325,337,450,435,543,534,745,745,947,952,1196,1171]} 1. d4 {[%emt 0:00:02]} Nf6 {[%emt 0:00:25]} 2. c4 {[%emt 0:00:03]} g6 {[%emt 0:00:38]} 3. Nc3 {[%emt 0:00:13]} Bg7 {[%emt 0:01:51]} 4. e4 {[%emt 0:00:23]} d6 {[%emt 0:00:22]} 5. Be2 {[%emt 0:02:04]} O-O {[%emt 0:00:34]} 6. Be3 {[%emt 0:00:03]} e5 {[%emt 0:03:44]} 7. d5 {[%emt 0:00:04]} Nbd7 {[%emt 0:09:00]} 8. g4 {[%emt 0:12:51]} Nc5 {[%emt 0:00:12]} 9. f3 {[%emt 0:00:38]} a5 {[%emt 0:02:16]} 10. h4 {[%emt 0:00:44]} h5 {[%emt 0:01:11] White is slightly better.} 11. g5 {[%emt 0:02:53]} Nh7 {[%emt 0:05:58]} 12. Qd2 {[%emt 0:00:20]} Bd7 {[%emt 0:14:51]} 13. O-O-O {[%emt 0:03:24]} f5 {[%emt 0:12:59]} (13... Qb8 $142) 14. gxf6 {[%emt 0:11:56]} ({Better is} 14. exf5 Bxf5 15. Nh3) 14... Bxf6 $16 {[%emt 0:00:06]} 15. Qe1 {[%emt 0:05:38]} Kh8 {[%emt 0:00:44]} 16. Kb1 {[%emt 0:00:55]} Rb8 {[%emt 0:06:49]} 17. Bf1 {[%emt 0:03:27]} Qe7 {[%emt 0:07:18]} 18. Nge2 {[%emt 0:18:34][%cal Bg1e2,Be2c3,Bc3d5][%mdl 32]} Na4 {[%emt 0:07:26]} 19. Nxa4 {[%emt 0:03:48]} Bxa4 {[%emt 0:00:06]} 20. b3 {[%emt 0:00:02]} Be8 {[%emt 0:02:02]} 21. Nc3 {[%emt 0:04:04] White is more active.} ({Much weaker is} 21. Qxa5 $6 Bxh4 22. Qa7 Qd8 $11) 21... c6 {[%emt 0:01:41] [#]} (21... a4 $16) 22. c5 {[%emt 0:02:54]} Bf7 {[%emt 0:06:46] A mistake that costs the game.} (22... dxc5 $16 {might work better.} 23. d6 Qd8) 23. cxd6 $18 {[%emt 0:04:16]} Qxd6 {[%emt 0:00:07]} 24. dxc6 {[%emt 0:00:04]} Qxc6 {[%emt 0:00:07]} 25. Bb5 {[%emt 0:00:21]} Qe6 {[%emt 0:04:15]} 26. Nd5 {[%emt 0:01:38] Against Qe7} Bd8 $2 {[%emt 0:03:45] [#]} (26... a4 $16 {was necessary.}) 27. Bc5 {[%emt 0:09:54][%cal Be3c5,Bc5a3,Ba3b2][%mdl 32]} Rg8 {[%emt 0:00:09]} 28. Qd2 {[%emt 0:01:13]} b6 {[%emt 0:00:38]} 29. Ba3 {[%emt 0:00:21]} a4 {[%emt 0:03:32]} 30. bxa4 {[%emt 0:02:14][%cal Bb3a4,Ba4b5][%mdl 32] White is clearly winning.} ({Weaker is} 30. Bxa4 b5 $18) 30... g5 {[%emt 0:02:11]} 31. Rc1 {[%emt 0:02:14]} Be8 {[%emt 0:01:55] Dodges Rc6} 32. Bb2 {[%emt 0:00:03]} Bxb5 {[%emt 0:01:47]} 33. axb5 {[%emt 0:00:02]} Qe8 {[%emt 0:00:42]} 34. Qh2 {[%emt 0:02:21] Weighted Error Value: White=0.15 (very precise) /Black=0.46.  Mistake:       	White=2     	Black=4      Inaccurate:     	---       	Black=3      OK:         	White=11    	Black=5} 1-0